[Event "*** Titled Tuesday Blitz"]
[Site "Chess.com"]
[Date "2020.04.28"]
[Round "1"]
[White "AnonymusDonkey"]
[Black "AtabayevSaparmyrat"]
[Result "0-1"]
[WhiteElo "2349"]
[BlackElo "2686"]
[TimeControl "180+1"]
[EndTime "10:08:00 PDT"]
[Termination "AtabayevSaparmyrat won by resignation"]

1. e4 {[%clk 0:03:00.9]} 1... c5 {[%clk 0:03:00]} 2. Nf3 {[%clk 0:03:01.1]} 2...
d6 {[%clk 0:03:00.4]} 3. d4 {[%clk 0:03:01.7]} 3... cxd4 {[%clk 0:03:01.3]} 4.
Nxd4 {[%clk 0:03:02.6]} 4... Nf6 {[%clk 0:03:01.9]} 5. Nc3 {[%clk 0:03:03.2]}
5... a6 {[%clk 0:03:02.3]} 6. Bd3 {[%clk 0:03:03.3]} 6... e5 {[%clk 0:03:02]} 7.
Nde2 {[%clk 0:03:03.4]} 7... Be7 {[%clk 0:03:02]} 8. O-O {[%clk 0:03:02.9]} 8...
O-O {[%clk 0:03:01.6]} 9. Ng3 {[%clk 0:03:03.2]} 9... Nbd7 {[%clk 0:02:59.9]}
10. Nf5 {[%clk 0:02:54.4]} 10... Nc5 {[%clk 0:02:56.6]} 11. Nxe7+ {[%clk
0:02:44.7]} 11... Qxe7 {[%clk 0:02:57.5]} 12. Bg5 {[%clk 0:02:45.1]} 12... Be6
{[%clk 0:02:39.7]} 13. Qf3 {[%clk 0:02:34.9]} 13... Nxd3 {[%clk 0:02:11]} 14.
Qxd3 {[%clk 0:02:33]} 14... Rac8 {[%clk 0:01:26.5]} 15. Rfd1 {[%clk 0:02:26.8]}
15... Rfd8 {[%clk 0:01:25]} 16. Rac1 {[%clk 0:02:21.1]} 16... h6 {[%clk
0:01:22.3]} 17. Bxf6 {[%clk 0:02:20.1]} 17... Qxf6 {[%clk 0:01:23.2]} 18. Nd5
{[%clk 0:02:20.4]} 18... Bxd5 {[%clk 0:01:20.1]} 19. Qxd5 {[%clk 0:02:21.3]}
19... Qe7 {[%clk 0:01:20.2]} 20. c3 {[%clk 0:02:15.5]} 20... Rd7 {[%clk
0:01:12]} 21. Rd3 {[%clk 0:02:08.2]} 21... Qe6 {[%clk 0:01:11.6]} 22. Rcd1
{[%clk 0:02:06.6]} 22... Rc6 {[%clk 0:01:03.3]} 23. f3 {[%clk 0:01:45.3]} 23...
Kf8 {[%clk 0:01:02.7]} 24. R1d2 {[%clk 0:01:05.1]} 24... Ke7 {[%clk 0:01:02.3]}
25. Qxe6+ {[%clk 0:01:00.2]} 25... fxe6 {[%clk 0:01:02.2]} 26. Kf2 {[%clk
0:01:00.1]} 26... b5 {[%clk 0:00:56.2]} 27. Rd1 {[%clk 0:00:54.3]} 27... Rc8
{[%clk 0:00:55.7]} 28. Ra1 {[%clk 0:00:46.9]} 28... Rb8 {[%clk 0:00:55.2]} 29.
Rad1 {[%clk 0:00:46.3]} 29... a5 {[%clk 0:00:51.7]} 30. R1d2 {[%clk 0:00:44.1]}
30... a4 {[%clk 0:00:50.9]} 31. b3 {[%clk 0:00:44.3]} 31... axb3 {[%clk
0:00:51]} 32. axb3 {[%clk 0:00:45.2]} 32... Ra8 {[%clk 0:00:51.9]} 33. h4 {[%clk
0:00:40]} 33... Ra3 {[%clk 0:00:49.3]} 34. b4 {[%clk 0:00:38]} 34... Ra6 {[%clk
0:00:47.6]} 35. Ke1 {[%clk 0:00:34.1]} 35... Rc7 {[%clk 0:00:46.7]} 36. Kd1
{[%clk 0:00:32.2]} 36... Rcc6 {[%clk 0:00:45.9]} 37. Ke2 {[%clk 0:00:29.4]}
37... Ra3 {[%clk 0:00:45.5]} 38. h5 {[%clk 0:00:27.7]} 38... Raxc3 {[%clk
0:00:42.3]} 39. Ra2 {[%clk 0:00:18.8]} 39... Rc2+ {[%clk 0:00:32.9]} 40. Rd2
{[%clk 0:00:18.3]} 40... Rxa2 {[%clk 0:00:30.9]} 41. Rxa2 {[%clk 0:00:18]} 41...
Rc4 {[%clk 0:00:27.4]} 42. Ra7+ {[%clk 0:00:17.6]} 42... Kf6 {[%clk 0:00:27.3]}
43. Rd7 {[%clk 0:00:17.9]} 43... Rd4 {[%clk 0:00:22.2]} 44. Ke3 {[%clk
0:00:17.7]} 44... d5 {[%clk 0:00:14.5]} 45. g3 {[%clk 0:00:08.7]} 45... dxe4
{[%clk 0:00:12.6]} 46. fxe4 {[%clk 0:00:08.6]} 46... Rxd7 {[%clk 0:00:12.5]} 0-1

[Event "*** Titled Tuesday Blitz"]
[Site "Chess.com"]
[Date "2020.04.28"]
[Round "1"]
[White "Blitzking642"]
[Black "albi1999"]
[Result "0-1"]
[WhiteElo "2325"]
[BlackElo "2653"]
[TimeControl "180+1"]
[EndTime "10:08:01 PDT"]
[Termination "albi1999 won by resignation"]

1. d4 {[%clk 0:03:00.9]} 1... d5 {[%clk 0:02:59.2]} 2. c4 {[%clk 0:03:00.3]}
2... e6 {[%clk 0:02:58.9]} 3. Nc3 {[%clk 0:03:00]} 3... Nf6 {[%clk 0:02:58.3]}
4. cxd5 {[%clk 0:02:59.2]} 4... Nxd5 {[%clk 0:02:59.2]} 5. e4 {[%clk 0:02:58.1]}
5... Nxc3 {[%clk 0:02:59.4]} 6. bxc3 {[%clk 0:02:58.5]} 6... c5 {[%clk
0:03:00.3]} 7. Nf3 {[%clk 0:02:56.8]} 7... cxd4 {[%clk 0:03:00.5]} 8. cxd4
{[%clk 0:02:57.7]} 8... Bb4+ {[%clk 0:03:00.9]} 9. Bd2 {[%clk 0:02:57.8]} 9...
Bxd2+ {[%clk 0:03:01.5]} 10. Qxd2 {[%clk 0:02:57.7]} 10... O-O {[%clk
0:03:02.2]} 11. Bc4 {[%clk 0:02:56.1]} 11... Nd7 {[%clk 0:03:01.6]} 12. O-O
{[%clk 0:02:50.1]} 12... b6 {[%clk 0:03:01.8]} 13. Rad1 {[%clk 0:02:47.9]} 13...
Bb7 {[%clk 0:03:01.7]} 14. Rfe1 {[%clk 0:02:48.2]} 14... Rc8 {[%clk 0:03:01.1]}
15. Bd3 {[%clk 0:02:32.8]} 15... Qc7 {[%clk 0:03:00.4]} 16. h3 {[%clk
0:02:20.4]} 16... Rfd8 {[%clk 0:02:56.1]} 17. Qe3 {[%clk 0:02:08.8]} 17... h6
{[%clk 0:02:39.8]} 18. Bb1 {[%clk 0:01:58.6]} 18... Qc3 {[%clk 0:02:33.6]} 19.
Qf4 {[%clk 0:01:55.7]} 19... Nf8 {[%clk 0:02:26.6]} 20. Ne5 {[%clk 0:01:20.8]}
20... f6 {[%clk 0:02:20.8]} 21. Nf3 {[%clk 0:01:20.4]} 21... Qc7 {[%clk
0:02:15.3]} 22. Qg4 {[%clk 0:01:17.8]} 22... Qf7 {[%clk 0:02:10.8]} 23. h4
{[%clk 0:01:14.1]} 23... Qg6 {[%clk 0:02:02.4]} 24. Qh3 {[%clk 0:01:02.3]} 24...
h5 {[%clk 0:01:54.8]} 25. d5 {[%clk 0:00:55.8]} 25... e5 {[%clk 0:01:49.6]} 26.
Rc1 {[%clk 0:00:51.2]} 26... Qh6 {[%clk 0:01:46.4]} 27. Rxc8 {[%clk 0:00:45.9]}
27... Bxc8 {[%clk 0:01:39.8]} 28. Qg3 {[%clk 0:00:45.3]} 28... Bd7 {[%clk
0:01:37.9]} 29. Bd3 {[%clk 0:00:42.8]} 29... Rc8 {[%clk 0:01:35.5]} 30. Rd1
{[%clk 0:00:40.7]} 30... Bg4 {[%clk 0:01:30.8]} 31. Kh2 {[%clk 0:00:28.7]} 31...
Rc1 {[%clk 0:01:27]} 32. Be2 {[%clk 0:00:26.5]} 32... Rxd1 {[%clk 0:01:25.8]}
33. Bxd1 {[%clk 0:00:27.4]} 33... Qc1 {[%clk 0:01:25.8]} 34. Bb3 {[%clk
0:00:27.4]} 34... Qc5 {[%clk 0:01:19.9]} 35. Nd2 {[%clk 0:00:21.4]} 35... b5
{[%clk 0:01:08.7]} 36. Nf1 {[%clk 0:00:20]} 36... a5 {[%clk 0:01:06.2]} 37. Ne3
{[%clk 0:00:17.2]} 37... Bd7 {[%clk 0:01:02.9]} 38. Bd1 {[%clk 0:00:15.3]} 38...
Qd4 {[%clk 0:00:55]} 39. Bxh5 {[%clk 0:00:12.1]} 39... Qxe4 {[%clk 0:00:54.1]}
40. d6 {[%clk 0:00:11.3]} 40... Qd4 {[%clk 0:00:47.9]} 41. Bg4 {[%clk
0:00:07.5]} 41... Qxd6 {[%clk 0:00:46.3]} 42. Nf5 {[%clk 0:00:05.4]} 42... Bxf5
{[%clk 0:00:45.2]} 43. Bxf5 {[%clk 0:00:06.3]} 43... Qd4 {[%clk 0:00:41.1]} 44.
h5 {[%clk 0:00:06.3]} 44... Kf7 {[%clk 0:00:34.4]} 45. Qf3 {[%clk 0:00:04.8]}
45... Qf4+ {[%clk 0:00:33.6]} 46. Qxf4 {[%clk 0:00:04.9]} 46... exf4 {[%clk
0:00:34.5]} 47. Kh3 {[%clk 0:00:05.6]} 47... Ne6 {[%clk 0:00:27.1]} 48. Kg4
{[%clk 0:00:05.5]} 48... b4 {[%clk 0:00:25.1]} 49. Bd3 {[%clk 0:00:04.7]} 49...
Ke7 {[%clk 0:00:22.7]} 50. Bc4 {[%clk 0:00:04.7]} 50... a4 {[%clk 0:00:22.8]}
51. Kf5 {[%clk 0:00:03.9]} 51... Nc5 {[%clk 0:00:17.5]} 52. Kxf4 {[%clk
0:00:04]} 52... b3 {[%clk 0:00:17.9]} 53. axb3 {[%clk 0:00:04]} 53... axb3
{[%clk 0:00:18.4]} 54. Kf5 {[%clk 0:00:02.2]} 54... b2 {[%clk 0:00:17.4]} 55.
Ba2 {[%clk 0:00:02.6]} 55... Na4 {[%clk 0:00:17.7]} 56. Kg6 {[%clk 0:00:01.6]}
56... Nc3 {[%clk 0:00:16.9]} 57. Bb1 {[%clk 0:00:01.4]} 57... Nxb1 {[%clk
0:00:16.4]} 58. h6 {[%clk 0:00:02.3]} 0-1

[Event "*** Titled Tuesday Blitz"]
[Site "Chess.com"]
[Date "2020.04.28"]
[Round "1"]
[White "MariaFominykh"]
[Black "manitodeplomo"]
[Result "0-1"]
[WhiteElo "2291"]
[BlackElo "2633"]
[TimeControl "180+1"]
[EndTime "10:08:01 PDT"]
[Termination "manitodeplomo won on time"]

1. d4 {[%clk 0:03:00.9]} 1... c5 {[%clk 0:02:55.9]} 2. d5 {[%clk 0:02:58.8]}
2... g6 {[%clk 0:02:55.9]} 3. Nc3 {[%clk 0:02:58.5]} 3... Bg7 {[%clk 0:02:56.8]}
4. e4 {[%clk 0:02:58.6]} 4... d6 {[%clk 0:02:57.7]} 5. Nf3 {[%clk 0:02:58]} 5...
Nf6 {[%clk 0:02:58.6]} 6. Be2 {[%clk 0:02:55.1]} 6... O-O {[%clk 0:02:58.2]} 7.
O-O {[%clk 0:02:54.4]} 7... Na6 {[%clk 0:02:58.8]} 8. h3 {[%clk 0:02:54.1]} 8...
Nc7 {[%clk 0:02:59.3]} 9. a4 {[%clk 0:02:53.1]} 9... b6 {[%clk 0:02:58.4]} 10.
Re1 {[%clk 0:02:51.2]} 10... a6 {[%clk 0:02:58.7]} 11. e5 {[%clk 0:02:32.8]}
11... Nfe8 {[%clk 0:02:33.3]} 12. Bf4 {[%clk 0:02:19.3]} 12... Bb7 {[%clk
0:02:30.6]} 13. Qd2 {[%clk 0:02:06.1]} 13... f6 {[%clk 0:02:20.8]} 14. exd6
{[%clk 0:02:02]} 14... exd6 {[%clk 0:02:18]} 15. Bh6 {[%clk 0:01:54.5]} 15... g5
{[%clk 0:02:08.1]} 16. Bxg7 {[%clk 0:01:53.4]} 16... Nxg7 {[%clk 0:02:09]} 17.
Bc4 {[%clk 0:01:40.4]} 17... h6 {[%clk 0:02:07.9]} 18. Qd3 {[%clk 0:01:26.1]}
18... f5 {[%clk 0:02:05.6]} 19. Re2 {[%clk 0:01:17.3]} 19... Re8 {[%clk
0:01:49.4]} 20. Rae1 {[%clk 0:01:16.2]} 20... Rxe2 {[%clk 0:01:49.9]} 21. Qxe2
{[%clk 0:01:10.4]} 21... Kf7 {[%clk 0:01:15.7]} 22. Nh2 {[%clk 0:00:30.8]} 22...
Qf6 {[%clk 0:00:59]} 23. Qf3 {[%clk 0:00:27.2]} 23... Re8 {[%clk 0:00:46.3]} 24.
Rxe8 {[%clk 0:00:26.1]} 24... Kxe8 {[%clk 0:00:44.4]} 25. Nf1 {[%clk 0:00:25.1]}
25... Qd4 {[%clk 0:00:34.6]} 26. Qe2+ {[%clk 0:00:22.6]} 26... Qe5 {[%clk
0:00:28.7]} 27. Qxe5+ {[%clk 0:00:19.5]} 27... dxe5 {[%clk 0:00:29.6]} 28. d6
{[%clk 0:00:19.3]} 28... Nce6 {[%clk 0:00:27.8]} 29. Ne3 {[%clk 0:00:18.9]}
29... Kd7 {[%clk 0:00:26]} 30. Ncd5 {[%clk 0:00:17.5]} 30... Bxd5 {[%clk
0:00:24.9]} 31. Nxd5 {[%clk 0:00:16.9]} 31... b5 {[%clk 0:00:23]} 32. axb5
{[%clk 0:00:16.3]} 32... axb5 {[%clk 0:00:23.9]} 33. Bxb5+ {[%clk 0:00:16.4]}
33... Kxd6 {[%clk 0:00:24.3]} 34. Nc3 {[%clk 0:00:14.7]} 34... Nd4 {[%clk
0:00:21.1]} 35. Ba4 {[%clk 0:00:12.3]} 35... e4 {[%clk 0:00:21.2]} 36. Kf1
{[%clk 0:00:11.9]} 36... Nge6 {[%clk 0:00:21.1]} 37. Ne2 {[%clk 0:00:11.2]}
37... Ke5 {[%clk 0:00:19.1]} 38. c3 {[%clk 0:00:09.9]} 38... Nxe2 {[%clk
0:00:17.9]} 39. Kxe2 {[%clk 0:00:10.3]} 39... Nf4+ {[%clk 0:00:17.5]} 40. Kf1
{[%clk 0:00:10.8]} 40... Nd3 {[%clk 0:00:17.5]} 41. b3 {[%clk 0:00:08.9]} 41...
f4 {[%clk 0:00:15.8]} 42. Ke2 {[%clk 0:00:08.1]} 42... f3+ {[%clk 0:00:12.4]}
43. gxf3 {[%clk 0:00:07.4]} 43... Nf4+ {[%clk 0:00:12.7]} 44. Ke3 {[%clk
0:00:07.2]} 44... exf3 {[%clk 0:00:12.8]} 45. Kxf3 {[%clk 0:00:06.8]} 45... Nxh3
{[%clk 0:00:12.8]} 46. Kg3 {[%clk 0:00:07.1]} 46... Nf4 {[%clk 0:00:12.4]} 47.
b4 {[%clk 0:00:06.1]} 47... c4 {[%clk 0:00:10.1]} 48. Bb5 {[%clk 0:00:04.8]}
48... Kd5 {[%clk 0:00:10.2]} 49. Kg4 {[%clk 0:00:03.9]} 49... Ne2 {[%clk
0:00:09.6]} 50. Kh5 {[%clk 0:00:03.1]} 50... Nxc3 {[%clk 0:00:10.1]} 51. Bd7
{[%clk 0:00:02.3]} 51... Ne4 {[%clk 0:00:09.2]} 0-1

[Event "*** Titled Tuesday Blitz"]
[Site "Chess.com"]
[Date "2020.04.28"]
[Round "1"]
[White "Vamostodorecto"]
[Black "gmelviro"]
[Result "0-1"]
[WhiteElo "2501"]
[BlackElo "2152"]
[TimeControl "180+1"]
[EndTime "10:08:01 PDT"]
[Termination "gmelviro won on time"]

1. d4 {[%clk 0:03:00.9]} 1... f5 {[%clk 0:02:59]} 2. e4 {[%clk 0:03:00.3]} 2...
fxe4 {[%clk 0:02:56]} 3. Nc3 {[%clk 0:02:59.8]} 3... Nf6 {[%clk 0:02:55.1]} 4.
Bg5 {[%clk 0:02:59.2]} 4... Nc6 {[%clk 0:02:53.5]} 5. d5 {[%clk 0:02:59.3]} 5...
Ne5 {[%clk 0:02:53.1]} 6. Qe2 {[%clk 0:02:58.6]} 6... d6 {[%clk 0:02:51.7]} 7.
Bxf6 {[%clk 0:02:38.3]} 7... exf6 {[%clk 0:02:50.3]} 8. Qxe4 {[%clk 0:02:36.4]}
8... Be7 {[%clk 0:02:43.5]} 9. f4 {[%clk 0:02:28.2]} 9... Nf7 {[%clk 0:02:27.8]}
10. O-O-O {[%clk 0:02:15.9]} 10... O-O {[%clk 0:02:26.7]} 11. Nf3 {[%clk
0:02:06.6]} 11... f5 {[%clk 0:02:17.9]} 12. Qe3 {[%clk 0:01:56.3]} 12... Bf6
{[%clk 0:02:15.7]} 13. Nd4 {[%clk 0:01:56.7]} 13... Re8 {[%clk 0:01:55.5]} 14.
Ne6 {[%clk 0:01:49.8]} 14... Qe7 {[%clk 0:01:49.2]} 15. Bc4 {[%clk 0:01:41.9]}
15... Nd8 {[%clk 0:01:48.9]} 16. Rhe1 {[%clk 0:01:37.7]} 16... Nxe6 {[%clk
0:01:35.8]} 17. dxe6 {[%clk 0:01:38.6]} 17... c6 {[%clk 0:01:35.9]} 18. Qd3
{[%clk 0:01:23.5]} 18... Bxc3 {[%clk 0:01:15.2]} 19. Qxc3 {[%clk 0:01:24.4]}
19... d5 {[%clk 0:00:46.2]} 20. Bd3 {[%clk 0:01:23.8]} 20... g6 {[%clk
0:00:42.8]} 21. g4 {[%clk 0:01:21.9]} 21... fxg4 {[%clk 0:00:31.1]} 22. Kb1
{[%clk 0:00:55.5]} 22... Qg7 {[%clk 0:00:28.8]} 23. Re5 {[%clk 0:00:49.2]} 23...
Bxe6 {[%clk 0:00:25.6]} 24. Rde1 {[%clk 0:00:38.9]} 24... Bf7 {[%clk 0:00:25.6]}
25. Qb4 {[%clk 0:00:32.8]} 25... Rxe5 {[%clk 0:00:17.2]} 26. Rxe5 {[%clk
0:00:31.3]} 26... Re8 {[%clk 0:00:13.8]} 27. Qd6 {[%clk 0:00:15.3]} 27... Qf8
{[%clk 0:00:11.3]} 28. Qc7 {[%clk 0:00:09.8]} 28... Rb8 {[%clk 0:00:07.4]} 29.
a3 {[%clk 0:00:08.5]} 29... Qd8 {[%clk 0:00:04.3]} 30. Re7 {[%clk 0:00:06.1]}
30... Qxc7 {[%clk 0:00:03.9]} 31. Rxc7 {[%clk 0:00:07]} 31... Kf8 {[%clk
0:00:04.3]} 32. f5 {[%clk 0:00:06.1]} 32... gxf5 {[%clk 0:00:03.9]} 33. Bxf5
{[%clk 0:00:07]} 33... h5 {[%clk 0:00:04.2]} 34. Kc1 {[%clk 0:00:05.7]} 34... a6
{[%clk 0:00:03.2]} 35. Bc8 {[%clk 0:00:04.6]} 35... Rxc8 {[%clk 0:00:02.6]} 36.
Rxc8+ {[%clk 0:00:04.4]} 36... Ke7 {[%clk 0:00:03.5]} 37. Rc7+ {[%clk
0:00:04.8]} 37... Kf6 {[%clk 0:00:03.8]} 38. Rxb7 {[%clk 0:00:04.4]} 38... h4
{[%clk 0:00:04.2]} 39. Kd2 {[%clk 0:00:02.2]} 39... g3 {[%clk 0:00:04.5]} 40.
hxg3 {[%clk 0:00:03.1]} 40... h3 {[%clk 0:00:04.9]} 41. Rb6 {[%clk 0:00:02.9]}
41... h2 {[%clk 0:00:04.6]} 42. Rxc6+ {[%clk 0:00:03.2]} 42... Kg5 {[%clk
0:00:04.9]} 43. Rxa6 {[%clk 0:00:02.3]} 43... h1=Q {[%clk 0:00:04.7]} 44. Kc3
{[%clk 0:00:02.1]} 44... Qg2 {[%clk 0:00:05.6]} 45. Kb4 {[%clk 0:00:02.1]} 45...
Qxg3 {[%clk 0:00:06.1]} 46. Kc5 {[%clk 0:00:01.7]} 46... Qc7+ {[%clk 0:00:06]}
0-1

[Event "*** Titled Tuesday Blitz"]
[Site "Chess.com"]
[Date "2020.04.28"]
[Round "1"]
[White "gross-aleks"]
[Black "APotatoInthekitchen"]
[Result "1-0"]
[WhiteElo "2525"]
[BlackElo "2161"]
[TimeControl "180+1"]
[EndTime "10:08:03 PDT"]
[Termination "gross-aleks won by resignation"]

1. c4 {[%clk 0:03:00.4]} 1... Nf6 {[%clk 0:02:59.2]} 2. Nf3 {[%clk 0:02:59.7]}
2... g6 {[%clk 0:02:59]} 3. b3 {[%clk 0:02:59.4]} 3... Bg7 {[%clk 0:02:59.2]} 4.
Bb2 {[%clk 0:03:00.1]} 4... O-O {[%clk 0:02:59.4]} 5. e3 {[%clk 0:03:00]} 5...
d6 {[%clk 0:02:59.5]} 6. d4 {[%clk 0:02:59.5]} 6... Nbd7 {[%clk 0:02:57.1]} 7.
Qc2 {[%clk 0:02:54]} 7... c5 {[%clk 0:02:44.2]} 8. d5 {[%clk 0:02:51.1]} 8... b5
{[%clk 0:02:32.7]} 9. Nbd2 {[%clk 0:02:30.3]} 9... Rb8 {[%clk 0:02:24.8]} 10. e4
{[%clk 0:02:16.2]} 10... bxc4 {[%clk 0:01:57.5]} 11. Nxc4 {[%clk 0:02:15]} 11...
Ba6 {[%clk 0:01:33.4]} 12. Nfd2 {[%clk 0:01:51.4]} 12... Nb6 {[%clk 0:01:28.8]}
13. Rd1 {[%clk 0:01:22.6]} 13... Nxc4 {[%clk 0:01:21.8]} 14. Bxc4 {[%clk
0:01:20.9]} 14... Nd7 {[%clk 0:01:21.1]} 15. Bxa6 {[%clk 0:01:15.5]} 15... Qa5
{[%clk 0:01:16.9]} 16. Bxg7 {[%clk 0:01:12.8]} 16... Kxg7 {[%clk 0:01:16.9]} 17.
Bc4 {[%clk 0:01:11.1]} 17... Ne5 {[%clk 0:01:14.8]} 18. O-O {[%clk 0:01:10.6]}
18... f5 {[%clk 0:01:14.8]} 19. f4 {[%clk 0:01:08.2]} 19... Nxc4 {[%clk
0:01:14.4]} 20. Nxc4 {[%clk 0:01:07.6]} 20... Qb4 {[%clk 0:01:13.7]} 21. Rde1
{[%clk 0:01:06.8]} 21... a5 {[%clk 0:01:13.2]} 22. exf5 {[%clk 0:01:06.4]} 22...
Rxf5 {[%clk 0:01:08.1]} 23. Rxe7+ {[%clk 0:01:05.3]} 23... Kg8 {[%clk
0:01:07.9]} 24. Qe4 {[%clk 0:00:58]} 24... Rbf8 {[%clk 0:01:02.5]} 25. Qe6+
{[%clk 0:00:56.7]} 25... Kh8 {[%clk 0:01:02.7]} 26. Qxd6 {[%clk 0:00:51.3]}
26... a4 {[%clk 0:01:01]} 27. g4 {[%clk 0:00:48.8]} 27... R5f6 {[%clk
0:00:57.4]} 28. Qe5 {[%clk 0:00:47.6]} 28... axb3 {[%clk 0:00:57.9]} 29. axb3
{[%clk 0:00:46.3]} 29... Kg8 {[%clk 0:00:38.3]} 30. g5 {[%clk 0:00:38.4]} 30...
R6f7 {[%clk 0:00:38.2]} 31. Rxf7 {[%clk 0:00:35.8]} 31... Rxf7 {[%clk
0:00:39.1]} 32. Nd6 {[%clk 0:00:35.3]} 32... Rf8 {[%clk 0:00:32.4]} 33. Qe6+
{[%clk 0:00:32.2]} 33... Kh8 {[%clk 0:00:32.5]} 34. Qe5+ {[%clk 0:00:28.5]}
34... Kg8 {[%clk 0:00:32.2]} 35. f5 {[%clk 0:00:28.2]} 35... Qg4+ {[%clk
0:00:27.3]} 36. Kh1 {[%clk 0:00:22.8]} 36... Qxg5 {[%clk 0:00:27.7]} 37. Qe6+
{[%clk 0:00:20.8]} 37... Kh8 {[%clk 0:00:27.3]} 38. Qf7 {[%clk 0:00:18.9]} 38...
Qd8 {[%clk 0:00:24.7]} 39. Qe6 {[%clk 0:00:17.8]} 39... Rf6 {[%clk 0:00:23.6]}
40. Nf7+ {[%clk 0:00:17]} 40... Rxf7 {[%clk 0:00:23.4]} 41. Qxf7 {[%clk
0:00:17.9]} 41... Qa8 {[%clk 0:00:21.4]} 42. fxg6 {[%clk 0:00:18.8]} 42... hxg6
{[%clk 0:00:21.7]} 43. Qe6 {[%clk 0:00:17.6]} 43... Kg7 {[%clk 0:00:20]} 44.
Qf6+ {[%clk 0:00:18.5]} 44... Kh6 {[%clk 0:00:20.2]} 45. Qe5 {[%clk 0:00:18.3]}
45... Qb7 {[%clk 0:00:19.8]} 46. h4 {[%clk 0:00:17.9]} 46... Qxb3 {[%clk
0:00:18.8]} 47. Qf4+ {[%clk 0:00:17.8]} 47... Kg7 {[%clk 0:00:18.6]} 48. d6
{[%clk 0:00:18.7]} 48... Qh3+ {[%clk 0:00:17.9]} 49. Kg1 {[%clk 0:00:18.2]}
49... Qd7 {[%clk 0:00:18.8]} 50. Qf6+ {[%clk 0:00:17.5]} 50... Kh6 {[%clk
0:00:19.2]} 51. Qg5+ {[%clk 0:00:16.5]} 51... Kg7 {[%clk 0:00:19.7]} 52. Re1
{[%clk 0:00:17.4]} 52... Qxd6 {[%clk 0:00:19.3]} 53. Re7+ {[%clk 0:00:17.7]}
53... Kf8 {[%clk 0:00:19.7]} 54. Re5 {[%clk 0:00:17.5]} 54... Qd4+ {[%clk
0:00:19.6]} 55. Kg2 {[%clk 0:00:17.2]} 55... Qb2+ {[%clk 0:00:19.2]} 56. Kg3
{[%clk 0:00:17]} 56... Qc3+ {[%clk 0:00:19.7]} 57. Re3 {[%clk 0:00:17]} 57...
Qd4 {[%clk 0:00:17.3]} 58. Qf4+ {[%clk 0:00:16.6]} 58... Qxf4+ {[%clk 0:00:17]}
59. Kxf4 {[%clk 0:00:17.5]} 59... Kf7 {[%clk 0:00:17.6]} 60. Kg5 {[%clk
0:00:17.5]} 60... c4 {[%clk 0:00:17.4]} 61. Rc3 {[%clk 0:00:18.4]} 61... Ke6
{[%clk 0:00:17.8]} 62. Rxc4 {[%clk 0:00:19.3]} 62... Ke5 {[%clk 0:00:18.7]} 63.
Rf4 {[%clk 0:00:19.2]} 63... Kd5 {[%clk 0:00:19]} 64. Rf6 {[%clk 0:00:20.1]}
64... Ke5 {[%clk 0:00:19.2]} 65. Rxg6 {[%clk 0:00:21]} 65... Ke4 {[%clk
0:00:20.1]} 66. h5 {[%clk 0:00:21.5]} 66... Ke3 {[%clk 0:00:21]} 67. h6 {[%clk
0:00:21.4]} 67... Ke2 {[%clk 0:00:21.9]} 68. h7 {[%clk 0:00:21.4]} 68... Kd3
{[%clk 0:00:22.8]} 1-0

[Event "*** Titled Tuesday Blitz"]
[Site "Chess.com"]
[Date "2020.04.28"]
[Round "1"]
[White "Semen_Khanin"]
[Black "otrov-11"]
[Result "0-1"]
[WhiteElo "2710"]
[BlackElo "2410"]
[TimeControl "180+1"]
[EndTime "10:08:04 PDT"]
[Termination "otrov-11 won by resignation"]

1. e4 {[%clk 0:03:00.9]} 1... e6 {[%clk 0:03:00.1]} 2. d4 {[%clk 0:03:00.3]}
2... d5 {[%clk 0:03:00.2]} 3. e5 {[%clk 0:03:00.3]} 3... c5 {[%clk 0:02:59.9]}
4. c3 {[%clk 0:03:00.9]} 4... Qb6 {[%clk 0:02:59.8]} 5. Nf3 {[%clk 0:03:01.1]}
5... Nc6 {[%clk 0:02:59.9]} 6. Na3 {[%clk 0:03:00.4]} 6... cxd4 {[%clk
0:02:46.4]} 7. cxd4 {[%clk 0:03:00.2]} 7... Bb4+ {[%clk 0:02:43.1]} 8. Bd2
{[%clk 0:02:59.7]} 8... Bd7 {[%clk 0:02:34.4]} 9. Nb5 {[%clk 0:02:52.9]} 9...
Nge7 {[%clk 0:01:34.6]} 10. Bxb4 {[%clk 0:02:48.7]} 10... Nxb4 {[%clk
0:01:34.3]} 11. Nd6+ {[%clk 0:02:48.2]} 11... Kf8 {[%clk 0:01:34.6]} 12. a3
{[%clk 0:02:33.6]} 12... Nbc6 {[%clk 0:01:33]} 13. Qd2 {[%clk 0:02:18.2]} 13...
Nc8 {[%clk 0:01:30.7]} 14. Nxc8 {[%clk 0:02:05.1]} 14... Rxc8 {[%clk 0:01:31.6]}
15. Be2 {[%clk 0:01:50.1]} 15... Na5 {[%clk 0:01:21.2]} 16. Qf4 {[%clk
0:01:16.5]} 16... Nb3 {[%clk 0:01:08.5]} 17. Rd1 {[%clk 0:01:15.8]} 17... Qa5+
{[%clk 0:01:06.7]} 18. Kf1 {[%clk 0:01:16.1]} 18... h6 {[%clk 0:01:05.2]} 19. g3
{[%clk 0:01:16]} 19... Bb5 {[%clk 0:01:02.5]} 20. Bxb5 {[%clk 0:01:14.6]} 20...
Qxb5+ {[%clk 0:01:03.4]} 21. Kg2 {[%clk 0:01:15.2]} 21... Ke7 {[%clk 0:01:02.7]}
22. Qh4+ {[%clk 0:00:54.4]} 22... Kd7 {[%clk 0:00:50.5]} 23. Qg4 {[%clk
0:00:39.1]} 23... Rhg8 {[%clk 0:00:49.9]} 24. Nd2 {[%clk 0:00:36.2]} 24... Rc2
{[%clk 0:00:38.1]} 25. Nxb3 {[%clk 0:00:35.1]} 25... Qxb3 {[%clk 0:00:39]} 26.
Qf4 {[%clk 0:00:30.6]} 26... Ke7 {[%clk 0:00:36.6]} 27. Rc1 {[%clk 0:00:29.5]}
27... Rgc8 {[%clk 0:00:35.1]} 28. Rxc2 {[%clk 0:00:29]} 28... Rxc2 {[%clk
0:00:34.9]} 29. Qh4+ {[%clk 0:00:28.3]} 29... Ke8 {[%clk 0:00:22.9]} 30. Re1
{[%clk 0:00:24.2]} 30... Qxb2 {[%clk 0:00:21.2]} 31. Qf4 {[%clk 0:00:24.4]}
31... Rc4 {[%clk 0:00:20.3]} 32. Rd1 {[%clk 0:00:20.3]} 32... Qxa3 {[%clk
0:00:20.4]} 33. Rd2 {[%clk 0:00:19]} 33... b5 {[%clk 0:00:19.9]} 34. Re2 {[%clk
0:00:18.2]} 34... Qd3 {[%clk 0:00:17.3]} 35. Rd2 {[%clk 0:00:15.6]} 35... Qe4+
{[%clk 0:00:17.3]} 36. Qxe4 {[%clk 0:00:15.4]} 36... dxe4 {[%clk 0:00:18.2]} 37.
Ra2 {[%clk 0:00:15.3]} 37... Rc7 {[%clk 0:00:16.4]} 38. Kf1 {[%clk 0:00:13.8]}
38... b4 {[%clk 0:00:16.1]} 39. Ke2 {[%clk 0:00:14.1]} 39... b3 {[%clk
0:00:16.3]} 40. Rb2 {[%clk 0:00:14.5]} 40... Rc2+ {[%clk 0:00:14.9]} 41. Rxc2
{[%clk 0:00:14]} 41... bxc2 {[%clk 0:00:15.5]} 42. Kd2 {[%clk 0:00:14.3]} 42...
Kd7 {[%clk 0:00:16.4]} 43. Kxc2 {[%clk 0:00:14.2]} 43... Kc6 {[%clk 0:00:16.8]}
44. Kb3 {[%clk 0:00:13.3]} 44... Kd5 {[%clk 0:00:16.8]} 45. Kc3 {[%clk
0:00:13.8]} 45... a5 {[%clk 0:00:16.9]} 46. h3 {[%clk 0:00:14.1]} 46... a4
{[%clk 0:00:17.1]} 47. Kb4 {[%clk 0:00:14.1]} 47... Kxd4 {[%clk 0:00:17.1]} 48.
Kxa4 {[%clk 0:00:14.5]} 48... Kxe5 {[%clk 0:00:17.4]} 49. Kb3 {[%clk 0:00:14]}
49... e3 {[%clk 0:00:16.9]} 50. fxe3 {[%clk 0:00:10.8]} 50... Ke4 {[%clk
0:00:17.3]} 0-1